bitfinex/quotes_BTCUSD_20250916
["timestamp","ask_amount","ask_price","bid_price","bid_amount"]
[1758029638788,0.17311038,115600.0,115590.0,0.17349785]
[1758029638982,0.17511038,115600.0,115590.0,0.00047251]
[1758029639627,0.17719038,115600.0,115590.0,0.00047251]
[1758029639834,0.80600189,115600.0,115590.0,0.00047251]
[1758029640070,0.30474386,115600.0,115590.0,0.00047251]
[1758029640287,0.32693666,115600.0,115590.0,0.00047251]
[1758029641872,0.82819469,115600.0,115590.0,0.00047251]
[1758029642141,1.25469614,115600.0,115590.0,0.00047251]
[1758029642832,0.70443527,115590.0,115580.0,0.0001]
[1758029643075,0.89963097,115590.0,115580.0,0.0001]
[1758029643303,1.26244563,115590.0,115580.0,0.0001]
[1758029643539,0.17305529,115570.0,115560.0,0.0001]
[1758029643769,0.56539465,115570.0,115560.0,0.00024191]
[1758029643998,1.09575268,115570.0,115560.0,0.00024191]
[1758029644224,0.6809961,115570.0,115560.0,0.00024191]
[1758029644714,0.6810961,115570.0,115560.0,0.00024191]
[1758029645168,0.6810961,115570.0,115560.0,0.00014191]
[1758029645169,0.59459465,115570.0,115560.0,0.00014191]
[1758029646010,0.59559465,115570.0,115560.0,0.00014191]
[1758029646486,0.57945443,115570.0,115560.0,0.00014191]
[1758029646709,0.59655885,115570.0,115560.0,0.00214191]
[1758029648581,1.09781688,115570.0,115560.0,0.00214191]
[1758029648834,1.27081978,115570.0,115560.0,0.00214191]
[1758029649058,1.27059049,115570.0,115560.0,0.00214191]
[1758029649951,1.12738507,115570.0,115560.0,0.00214191]
[1758029650877,1.13085384,115570.0,115560.0,0.00214191]
[1758029651279,0.77280123,115570.0,115560.0,0.00214191]
[1758029651552,1.13085384,115570.0,115560.0,0.00214191]
[1758029651772,0.68629978,115570.0,115560.0,0.00214191]
[1758029652001,0.68283101,115570.0,115560.0,0.00214191]
[1758029652236,0.57243956,115570.0,115560.0,0.00214191]
[1758029652469,0.56919956,115570.0,115560.0,0.00214191]
[1758029652700,0.65894101,115570.0,115560.0,0.00214191]
[1758029652939,0.68283101,115570.0,115560.0,0.00214191]
[1758029653451,1.12738507,115570.0,115560.0,0.00214191]
[1758029654372,1.127377,115570.0,115560.0,0.00214191]
[1758029657725,1.13084577,115570.0,115560.0,0.00214191]
[1758029658161,1.127377,115570.0,115560.0,0.00214191]
[1758029658409,1.04087555,115570.0,115560.0,0.00214191]
[1758029658628,0.68282294,115570.0,115560.0,0.00214191]
[1758029659059,1.04087555,115570.0,115560.0,0.00214191]
[1758029659961,1.127377,115570.0,115560.0,0.00214191]
[1758029660409,1.12739536,115570.0,115560.0,0.00214191]
[1758029662442,0.76934275,115570.0,115560.0,0.00214191]
[1758029662662,1.12739536,115570.0,115560.0,0.00214191]
[1758029664748,0.76934275,115570.0,115560.0,0.00214191]
[1758029664986,1.12739536,115570.0,115560.0,0.00214191]
[1758029665408,0.76934275,115570.0,115560.0,0.00214191]
[1758029665563,1.12739536,115570.0,115560.0,0.00214191]
[1758029667136,0.76934275,115570.0,115560.0,0.00214191]
[1758029667952,1.12739536,115570.0,115560.0,0.00214191]
[1758029668811,0.72933804,115570.0,115560.0,0.00214191]
[1758029669013,0.74550673,115570.0,115560.0,0.00214191]
[1758029669377,0.79541103,115570.0,115560.0,0.00214191]
[1758029669809,0.68501958,115570.0,115560.0,0.00214191]
[1758029670037,0.68177958,115570.0,115560.0,0.00214191]
[1758029670262,0.67980958,115570.0,115560.0,0.00214191]
[1758029670475,0.68177958,115570.0,115560.0,0.00214191]
[1758029671152,0.68501958,115570.0,115560.0,0.00214191]
[1758029671609,0.67980958,115570.0,115560.0,0.00214191]
[1758029671852,0.65576528,115570.0,115560.0,0.00214191]
[1758029672083,0.65900528,115570.0,115560.0,0.00214191]
[1758029672306,0.68289528,115570.0,115560.0,0.00214191]
[1758029672527,1.04094789,115570.0,115560.0,0.00214191]
[1758029674339,1.03490065,115570.0,115560.0,0.00214191]
[1758029674535,1.04097949,115570.0,115560.0,0.00214191]
[1758029675216,1.12748094,115570.0,115560.0,0.00214191]
[1758029675451,1.13094952,115570.0,115560.0,0.00214191]
[1758029675932,0.90127477,115560.0,115550.0,0.0002]
[1758029676166,1.0965252,115560.0,115550.0,1e-08]
[1758029676394,1.58277781,115560.0,115550.0,1e-08]
[1758029676861,0.20325212,115540.0,115530.0,0.0001]
[1758029677115,0.72005371,115540.0,115530.0,0.00024193]
[1758029677355,0.74825371,115540.0,115530.0,0.00024193]
[1758029677606,1.17330523,115540.0,115530.0,1e-08]
[1758029677843,1.22339656,115540.0,115530.0,1e-08]
[1758029678320,0.868814,115540.0,115530.0,1e-08]
[1758029678545,1.22886661,115540.0,115530.0,1e-08]
[1758029678953,1.17686661,115540.0,115530.0,1e-08]
[1758029679182,1.13486661,115540.0,115530.0,0.00100001]
[1758029680560,0.75371501,115540.0,115530.0,0.00100001]
[1758029680812,1.10877762,115540.0,115530.0,0.00100001]
[1758029681039,1.11176762,115540.0,115530.0,0.00100001]
[1758029681292,0.75072501,115540.0,115530.0,0.00100001]
[1758029681514,0.75371501,115540.0,115530.0,0.00100001]
[1758029681746,0.77680501,115540.0,115530.0,0.00100001]
[1758029682182,0.75072501,115540.0,115530.0,0.00100001]
[1758029682397,0.74860501,115540.0,115530.0,0.00100001]
[1758029682852,0.29195166,115540.0,115530.0,0.00100001]
[1758029683292,0.66210356,115540.0,115530.0,0.00100001]
[1758029683510,0.65863351,115540.0,115530.0,0.00100001]
[1758029683980,0.65775351,115540.0,115530.0,0.00100001]
[1758029684204,0.65875351,115540.0,115530.0,0.00100001]
[1758029684419,0.68483351,115540.0,115530.0,0.00100001]
[1758029684659,1.03688612,115540.0,115530.0,1e-08]
[1758029684848,1.03888612,115540.0,115530.0,0.00100001]
[1758029685109,1.03888612,115540.0,115530.0,0.00200001]
[1758029685355,1.12338757,115540.0,115530.0,0.00100001]
[1758029685570,1.12438757,115540.0,115530.0,0.00500001]
[1758029685792,0.76633496,115540.0,115530.0,0.00500001]
[1758029686015,1.12438757,115540.0,115530.0,0.00500001]
[1758029686462,1.12338757,115540.0,115530.0,0.00100001]
[1758029686694,1.12338757,115540.0,115530.0,1e-08]
[1758029687250,1.12685714,115540.0,115530.0,1e-08]
[1758029688341,1.12785714,115540.0,115530.0,0.00100001]
[1758029688560,1.12885714,115540.0,115530.0,0.00100001]
[1758029688743,1.12785714,115540.0,115530.0,1e-08]
[1758029688973,1.12785714,115540.0,115530.0,0.00100001]
[1758029689190,1.12985714,115540.0,115530.0,0.00100001]
[1758029689621,1.10377714,115540.0,115530.0,0.00100001]
[1758029689836,0.74572453,115540.0,115530.0,0.00100001]
[1758029690228,0.77180453,115540.0,115530.0,0.00100001]
[1758029691155,0.74572453,115540.0,115530.0,0.00100001]
[1758029691891,0.65363351,115540.0,115530.0,0.00182001]
[1758029692134,0.65575351,115540.0,115530.0,0.00100001]
[1758029692751,0.65363351,115540.0,115530.0,0.00100001]
[1758029693169,0.31363383,115540.0,115530.0,0.00100001]
[1758029693383,0.19236891,115540.0,115530.0,0.53298782]
[1758029693816,0.01926869,115540.0,115530.0,0.53298782]
[1758029694084,0.0021,115540.0,115530.0,0.53298782]
[1758029694452,0.0021,115540.0,115530.0,0.53498782]
[1758029694663,0.17520022,115540.0,115530.0,0.53498782]
[1758029694873,0.17520022,115540.0,115530.0,0.59769801]
[1758029695075,0.17320022,115540.0,115530.0,0.2386454]
[1758029695301,0.17420022,115540.0,115530.0,0.59969801]
[1758029695496,0.17520022,115540.0,115530.0,0.60369801]
[1758029695705,0.21004009,115540.0,115530.0,0.2416454]
[1758029695913,0.20904009,115540.0,115530.0,0.59969801]
[1758029696120,0.20904009,115540.0,115530.0,0.0685302]
[1758029696333,0.20904009,115540.0,115530.0,0.0677102]
[1758029696569,0.21116009,115540.0,115530.0,0.00300001]
[1758029696773,0.26739199,115540.0,115530.0,0.00300001]
[1758029696999,0.28455748,115540.0,115530.0,0.00800001]
[1758029697227,0.26839199,115540.0,115530.0,0.00800001]
[1758029697648,0.26540199,115540.0,115530.0,0.00800001]
[1758029697929,0.26839199,115540.0,115530.0,0.00800001]
[1758029698141,0.62455829,115540.0,115530.0,0.00800001]
[1758029698356,0.9826109,115540.0,115530.0,0.00800001]
[1758029698773,1.06911235,115540.0,115530.0,0.00800001]
[1758029698984,1.07517461,115540.0,115530.0,0.00800001]
[1758029699226,1.07517516,115540.0,115530.0,0.00800001]
[1758029700085,1.07517516,115540.0,115530.0,0.00810001]
[1758029700731,1.06911235,115540.0,115530.0,0.00810001]
[1758029700978,0.68796974,115540.0,115530.0,0.00810001]
[1758029701187,0.54535212,115540.0,115530.0,0.00810001]
[1758029701364,0.54535212,115540.0,115530.0,0.00892001]
[1758029701520,0.54535212,115540.0,115530.0,0.00810001]
[1758029702281,0.51520022,115540.0,115530.0,0.00892001]
[1758029702516,0.51520022,115540.0,115530.0,0.00882001]
[1758029702748,0.61615199,115540.0,115530.0,0.00800001]
[1758029702991,1.01827879,115540.0,115530.0,0.00800001]
[1758029703212,1.10478024,115540.0,115530.0,0.00800001]
[1758029703424,1.11084682,115540.0,115530.0,0.00800001]
[1758029703882,0.76079422,115540.0,115530.0,0.00800001]
[1758029704106,1.11784683,115540.0,115530.0,0.00500001]
[1758029704363,1.11884683,115540.0,115530.0,0.00500001]
[1758029704763,1.11885336,115540.0,115530.0,0.00500001]
[1758029704975,1.11785336,115540.0,115530.0,0.00500001]
[1758029705192,1.11885336,115540.0,115530.0,0.00500001]
[1758029706048,1.11885336,115540.0,115530.0,1e-08]
[1758029706262,1.11785336,115540.0,115530.0,1e-08]
[1758029706469,1.11985336,115540.0,115530.0,0.00100001]
[1758029707040,1.11885336,115540.0,115530.0,0.00100001]
[1758029707267,1.11685336,115540.0,115530.0,1e-08]
[1758029707727,1.11785336,115540.0,115530.0,0.00200001]
[1758029708351,1.11785336,115540.0,115530.0,0.00300001]
[1758029709033,1.16785336,115540.0,115530.0,1e-08]
[1758029709785,0.56131971,115530.0,115520.0,0.00015608]
[1758029709996,0.75656991,115530.0,115520.0,0.00015608]
[1758029710207,1.12581991,115530.0,115520.0,0.00015608]
[1758029710645,1.12591991,115530.0,115520.0,0.00015608]
[1758029711083,1.12591991,115530.0,115520.0,1e-08]
[1758029711303,1.12591991,115530.0,115520.0,0.00200001]
[1758029711546,1.17691991,115530.0,115520.0,1e-08]
[1758029711766,0.54328209,115520.0,115510.0,1e-08]
[1758029711986,1.24061777,115520.0,115510.0,1e-08]
[1758029712424,1.26986777,115520.0,115510.0,1e-08]
[1758029712669,1.27868597,115520.0,115510.0,1e-08]
[1758029713555,0.77660049,115520.0,115510.0,1e-08]
[1758029713774,1.28215656,115520.0,115510.0,1e-08]
[1758029714001,0.78007108,115520.0,115510.0,1e-08]
[1758029714220,0.75587108,115520.0,115510.0,0.00100001]
[1758029714460,0.75382108,115520.0,115510.0,0.00100001]
[1758029714686,0.75782108,115520.0,115510.0,0.00200001]
[1758029714912,0.75987108,115520.0,115510.0,0.00200001]
[1758029715127,0.76300108,115520.0,115510.0,0.00200001]
[1758029715574,0.75782108,115520.0,115510.0,0.00200001]
[1758029716036,0.67131963,115520.0,115510.0,0.00200001]
[1758029716265,0.19641091,115520.0,115510.0,0.00282001]
[1758029716504,0.18023019,115520.0,115510.0,0.00282001]
[1758029716773,0.52023019,115520.0,115510.0,0.00282001]
[1758029717006,0.54543209,115520.0,115510.0,1e-08]
[1758029717246,0.67049198,115520.0,115510.0,1e-08]
[1758029717464,0.67049198,115520.0,115510.0,0.00100001]
[1758029717675,0.67149198,115520.0,115510.0,0.00300001]
[1758029717891,0.67049198,115520.0,115510.0,1e-08]
[1758029718317,0.67449198,115520.0,115510.0,1e-08]
[1758029718830,0.64524198,115520.0,115510.0,0.00082001]
[1758029719289,0.64524198,115520.0,115510.0,1e-08]
[1758029719752,0.64124198,115520.0,115510.0,1e-08]
[1758029719985,0.53039221,115520.0,115510.0,0.00082001]
[1758029720210,0.51723019,115520.0,115510.0,0.00182001]
[1758029720442,0.51323019,115520.0,115510.0,1e-08]
[1758029720848,0.51423019,115520.0,115510.0,0.00100001]
[1758029721117,0.51323019,115520.0,115510.0,1e-08]
[1758029721339,0.59170787,115520.0,115510.0,1e-08]
[1758029721569,0.62803977,115520.0,115510.0,0.00200001]
[1758029721796,0.66827386,115520.0,115510.0,0.00300001]
[1758029724559,1.25686079,115520.0,115510.0,0.00300001]
[1758029724979,1.26292434,115520.0,115510.0,0.00300001]
[1758029725422,0.76083886,115520.0,115510.0,0.00300001]
[1758029726076,1.26292434,115520.0,115510.0,0.00300001]
[1758029727464,0.76083886,115520.0,115510.0,0.00300001]
[1758029727670,1.26292434,115520.0,115510.0,0.00300001]
[1758029727884,0.76083886,115520.0,115510.0,0.00300001]
[1758029728106,1.26292434,115520.0,115510.0,0.00300001]
[1758029729055,0.76083886,115520.0,115510.0,0.00300001]
[1758029729317,1.26292434,115520.0,115510.0,0.00300001]
[1758029730637,0.64713741,115520.0,115510.0,0.00300001]
[1758029730869,0.61493551,115520.0,115510.0,0.00300001]
[1758029731172,0.61493551,115520.0,115510.0,0.00382001]
[1758029731173,0.19039428,115520.0,115510.0,0.00382001]
[1758029731353,0.53039428,115520.0,115510.0,0.00382001]
[1758029731577,0.17423019,115520.0,115510.0,0.00382001]
[1758029732022,0.0011,115520.0,115510.0,0.67905067]
[1758029732239,0.17423019,115520.0,115510.0,0.67905067]
[1758029732682,0.0011,115520.0,115510.0,0.67905067]
[1758029732899,0.0011,115520.0,115510.0,0.67915067]
[1758029733114,0.17423019,115520.0,115510.0,0.67915067]
[1758029733355,0.17423019,115520.0,115510.0,0.50600549]
[1758029733581,0.20897473,115520.0,115510.0,0.00392001]
[1758029733820,0.20897473,115520.0,115510.0,0.00300001]
[1758029734041,0.21106473,115520.0,115510.0,0.00300001]
[1758029734495,1.11056211,115520.0,115510.0,0.00300001]
[1758029734718,1.21932208,115520.0,115510.0,0.00300001]
[1758029734944,1.21932186,115520.0,115510.0,0.00300001]
[1758029735388,0.68997638,115520.0,115510.0,0.00300001]
[1758029735840,0.54438209,115520.0,115510.0,0.00300001]
[1758029736070,0.54647209,115520.0,115510.0,0.00300001]
[1758029736285,0.589918,115520.0,115510.0,0.00300001]
[1758029736731,0.586748,115520.0,115510.0,0.00300001]
[1758029736921,0.562658,115520.0,115510.0,0.00300001]
[1758029737181,0.64915945,115520.0,115510.0,0.00300001]
[1758029737397,0.65232945,115520.0,115510.0,0.00300001]
[1758029737624,0.67641945,115520.0,115510.0,0.00300001]
[1758029737847,0.51423019,115520.0,115510.0,0.00300001]
[1758029738065,0.51423019,115520.0,115510.0,0.00382001]
[1758029738520,0.17423019,115520.0,115510.0,0.17696519]
[1758029738968,0.17423019,115520.0,115510.0,0.00382001]
[1758029739833,0.17632019,115520.0,115510.0,0.00300001]
[1758029740049,0.21399973,115520.0,115510.0,0.00300001]
[1758029740487,0.21190973,115520.0,115510.0,0.00300001]
[1758029741353,0.17423019,115520.0,115510.0,0.00382001]
[1758029742026,0.17423019,115520.0,115510.0,0.00300001]
[1758029742218,0.17949019,115520.0,115510.0,0.00300001]
[1758029742370,0.20358019,115520.0,115510.0,0.00300001]
[1758029743407,0.23373209,115520.0,115510.0,0.00300001]
[1758029743658,1.16231902,115520.0,115510.0,0.00300001]
[1758029743792,1.24882047,115520.0,115510.0,0.00300001]
[1758029744003,1.26500782,115520.0,115510.0,0.00300001]
[1758029744645,0.76292234,115520.0,115510.0,0.00300001]
[1758029744856,1.26500782,115520.0,115510.0,0.00300001]
[1758029745067,1.27107891,115520.0,115510.0,0.00300001]
[1758029745899,0.76292234,115520.0,115510.0,0.00300001]
[1758029746304,0.67325089,115520.0,115510.0,0.00300001]
[1758029746543,0.64916089,115520.0,115510.0,0.00300001]
[1758029746743,0.65233089,115520.0,115510.0,0.00300001]
[1758029747072,0.67642089,115520.0,115510.0,0.00300001]
[1758029747485,0.51423019,115520.0,115510.0,0.00300001]
[1758029747726,0.58297473,115520.0,115510.0,0.00300001]
[1758029747917,0.58506473,115520.0,115510.0,0.00300001]
[1758029748530,0.61232473,115520.0,115510.0,0.00300001]
[1758029748873,0.60915473,115520.0,115510.0,0.00300001]
[1758029749353,0.61232473,115520.0,115510.0,0.00300001]
[1758029749592,0.17423019,115520.0,115510.0,0.00382001]
[1758029750756,0.17423019,115520.0,115510.0,0.67905067]
[1758029750979,0.17423019,115520.0,115510.0,0.76555212]
[1758029751198,0.17423019,115520.0,115510.0,0.26356664]
[1758029751854,0.20897473,115520.0,115510.0,0.09042146]
[1758029752497,0.20897473,115520.0,115510.0,0.26356664]
[1758029752731,0.0011,115520.0,115510.0,0.82939209]
[1758029754601,0.0011,115520.0,115510.0,0.82839209]
[1758029754832,0.0001,115530.0,115520.0,0.17313019]
[1758029755049,0.0001,115530.0,115520.0,0.76253712]
[1758029756226,0.0001,115530.0,115520.0,0.76263712]
[1758029757092,0.0001,115540.0,115530.0,0.1731152]
[1758029757333,0.0001,115550.0,115540.0,0.17310022]
[1758029757620,0.17332691,115550.0,115540.0,0.76250715]
[1758029758074,0.00024167,115550.0,115540.0,0.76250715]
[1758029758709,0.00024167,115550.0,115540.0,0.76350715]
[1758029758710,0.00124167,115550.0,115540.0,0.76350715]
[1758029759967,0.17432691,115550.0,115540.0,0.76350715]
[1758029760181,0.00124167,115550.0,115540.0,0.76360715]
[1758029760434,0.17432691,115550.0,115540.0,0.76360715]
[1758029760639,0.00124167,115550.0,115540.0,0.76360715]
[1758029761136,0.00124167,115550.0,115540.0,0.82994916]
[1758029761805,0.00124167,115550.0,115540.0,0.83194916]
[1758029764287,0.00124167,115550.0,115540.0,0.32986368]
[1758029764503,0.00124167,115550.0,115540.0,0.83194916]
[1758029764727,0.00124167,115550.0,115540.0,0.32986368]
[1758029764956,0.00124167,115550.0,115540.0,0.83194916]
[1758029772866,0.00124167,115550.0,115540.0,1.17194916]
[1758029773330,0.00114167,115550.0,115540.0,1.17194916]
[1758029773550,0.00114167,115550.0,115540.0,1.16994916]
[1758029773772,0.00014167,115550.0,115540.0,1.16894916]
[1758029773983,0.00014167,115550.0,115540.0,1.02658711]
[1758029775286,0.00114167,115550.0,115540.0,1.42858711]
[1758029776289,0.00114167,115550.0,115540.0,0.68776711]
[1758029776515,0.17631691,115550.0,115540.0,0.33004368]
[1758029776748,0.21239662,115550.0,115540.0,0.15894346]
[1758029776969,0.25404976,115550.0,115540.0,0.15894346]
[1758029778080,0.25414976,115550.0,115540.0,0.15894346]
[1758029779418,0.25417848,115550.0,115540.0,0.15894346]
[1758029779655,0.25417848,115550.0,115540.0,0.07244201]
[1758029779656,0.61190191,115550.0,115540.0,0.07244201]
[1758029779904,0.64811824,115550.0,115540.0,0.0061]
[1758029780164,0.98811824,115550.0,115540.0,0.0061]
[1758029780620,0.63039481,115550.0,115540.0,0.0041]
[1758029780847,0.60488481,115550.0,115540.0,0.004]
[1758029781084,0.63139481,115550.0,115540.0,0.004]
[1758029781655,0.1731152,115530.0,115520.0,0.18270604]
[1758029781877,0.18928706,115530.0,115520.0,0.25973099]
[1758029782108,0.2239086,115530.0,115520.0,0.61745442]
[1758029782485,0.2240086,115530.0,115520.0,0.61745442]
[1758029783168,0.2250086,115530.0,115520.0,0.26273099]
[1758029783390,0.2300886,115530.0,115520.0,0.62045507]
[1758029783644,0.2250086,115530.0,115520.0,0.62045507]
[1758029783871,0.2270986,115530.0,115520.0,0.44932488]
[1758029784096,0.2526086,115530.0,115520.0,0.09160145]
[1758029785619,0.2526086,115530.0,115520.0,0.26473164]
[1758029785862,0.01727186,115530.0,115520.0,0.62245507]
[1758029786078,0.01728621,115530.0,115520.0,0.62245507]
[1758029786512,0.0011,115530.0,115520.0,0.62327507]
[1758029786711,0.0011,115530.0,115520.0,0.62245507]
[1758029786894,0.0011,115530.0,115520.0,0.62327507]
[1758029787994,0.1742152,115530.0,115520.0,0.62245507]
[1758029788205,0.03746022,115530.0,115520.0,0.62245507]
[1758029788409,0.1763052,115530.0,115520.0,0.26473164]
[1758029788634,0.1763052,115530.0,115520.0,0.62245507]
[1758029790463,0.2018152,115530.0,115520.0,0.62245507]
[1758029790874,0.2018152,115530.0,115520.0,0.26473164]
[1758029791160,0.1742152,115530.0,115520.0,0.26473164]
[1758029791338,0.2132988,115530.0,115520.0,0.26473164]
[1758029791985,0.0401836,115530.0,115520.0,0.26473164]
[1758029792254,0.2388088,115530.0,115520.0,0.09160145]
[1758029792504,0.2388088,115530.0,115520.0,0.0051]
[1758029792833,0.93653223,115530.0,115520.0,0.0051]
[1758029793042,0.97274797,115530.0,115520.0,0.0051]
[1758029793255,0.96668413,115530.0,115520.0,0.0051]
[1758029793982,0.97274729,115530.0,115520.0,0.0051]
[1758029794221,0.97174729,115530.0,115520.0,0.0001]
[1758029794464,1.06813501,115530.0,115520.0,0.0001]
[1758029794700,1.06813479,115530.0,115520.0,0.0001]
[1758029794945,0.54328209,115520.0,115510.0,0.01626001]
[1758029795181,0.98750697,115520.0,115510.0,0.01626001]
[1758029795404,1.01525697,115520.0,115510.0,0.01626001]
[1758029795646,1.03758696,115520.0,115510.0,0.01626001]
[1758029795850,1.03758696,115520.0,115510.0,0.01616001]
[1758029796348,1.12607399,115520.0,115510.0,0.01716001]
[1758029797235,1.12707399,115520.0,115510.0,0.01716001]
[1758029799284,0.76935056,115520.0,115510.0,0.01716001]
[1758029799506,1.12707399,115520.0,115510.0,0.01716001]
[1758029802201,1.12690099,115520.0,115510.0,0.01716001]
[1758029809797,1.12686055,115520.0,115510.0,0.01716001]
[1758029810471,1.17686093,115520.0,115510.0,1e-08]
[1758029810689,1.53458436,115520.0,115500.0,0.0002]
[1758029810910,0.99593968,115510.0,115500.0,0.0002]
[1758029811137,1.09619892,115510.0,115500.0,0.0002]
[1758029811365,1.55611661,115510.0,115500.0,1e-08]
[1758029811836,0.20331207,115500.0,115490.0,1e-08]
[1758029812046,1.02741476,115500.0,115490.0,0.0001416]
[1758029812261,0.17319016,115480.0,115470.0,0.0002]
[1758029812473,0.55306797,115480.0,115470.0,0.0002]
[1758029812716,0.58081797,115480.0,115470.0,0.0002]
[1758029812935,0.58081714,115480.0,115470.0,0.0002]
[1758029813387,0.58091714,115480.0,115470.0,0.0002]
[1758029813608,0.66596866,115480.0,115470.0,0.0002]
[1758029813831,1.00696866,115480.0,115470.0,0.0002]
[1758029814050,1.09347011,115480.0,115470.0,0.0002]
[1758029814294,0.53859371,115480.0,115470.0,0.0002]
[1758029814539,0.19644312,115480.0,115470.0,0.53194859]
[1758029814769,0.02325296,115480.0,115470.0,0.61845004]
[1758029815000,0.19040244,115480.0,115470.0,0.61845004]
[1758029815271,0.02325296,115480.0,115470.0,0.61845004]
[1758029815502,0.01721228,115480.0,115470.0,0.61845004]
[1758029815711,0.0172136,115480.0,115470.0,0.61845004]
[1758029816610,0.21005704,115480.0,115470.0,0.61845004]
[1758029817318,0.03686688,115480.0,115470.0,0.61845004]
[1758029817546,0.0172136,115480.0,115470.0,0.61845004]
[1758029818031,0.0172136,115480.0,115470.0,0.61855004]
[1758029819420,0.0182136,115480.0,115470.0,0.62155004]
[1758029820067,0.0172136,115480.0,115470.0,0.26382661]
[1758029820521,0.19845185,115480.0,115470.0,0.62255004]
[1758029821478,0.02526169,115480.0,115470.0,0.62255004]
[1758029822348,0.0192136,115480.0,115470.0,0.62255004]
[1758029822585,0.02528311,115480.0,115470.0,0.62255004]
[1758029823042,0.0192136,115480.0,115470.0,0.96255004]
[1758029823505,0.0192136,115480.0,115470.0,1.36255004]
[1758029823950,0.01928559,115480.0,115470.0,1.36255004]
[1758029824179,0.01928559,115480.0,115470.0,1.02255004]
[1758029824673,0.01928559,115480.0,115470.0,0.09162145]
[1758029824674,0.21173189,115480.0,115470.0,0.09162145]
[1758029824882,0.04460952,115480.0,115470.0,0.26482661]
[1758029825092,0.04460952,115480.0,115470.0,0.62255004]
[1758029825320,0.02535338,115480.0,115470.0,0.62255004]
[1758029826477,0.19854354,115480.0,115470.0,0.26482661]
[1758029826700,0.19854354,115480.0,115470.0,0.09080145]
[1758029826925,0.19854354,115480.0,115470.0,0.26482661]
[1758029827162,0.19844354,115480.0,115470.0,0.09080145]
[1758029827380,0.23561314,115480.0,115470.0,0.09080145]
[1758029827829,0.26576504,115480.0,115470.0,0.0043]
[1758029828052,0.26576468,115480.0,115470.0,0.0043]
[1758029828760,0.26777468,115480.0,115470.0,0.0043]
[1758029829210,0.2677771,115480.0,115470.0,0.0043]
[1758029829430,0.2708271,115480.0,115470.0,0.0043]
[1758029829651,0.2677771,115480.0,115470.0,0.0043]
[1758029830084,0.2708271,115480.0,115470.0,0.0043]
[1758029830500,0.2677771,115480.0,115470.0,0.0043]
[1758029831853,0.2957671,115480.0,115470.0,0.0043]
[1758029832080,0.65349053,115480.0,115470.0,0.0043]
[1758029832603,0.2957671,115480.0,115470.0,0.0043]
[1758029832820,0.2948671,115480.0,115470.0,0.0003]
[1758029833063,0.2928671,115480.0,115470.0,0.0003]
[1758029833282,0.2938671,115480.0,115470.0,0.0003]
[1758029833742,0.2948671,115480.0,115470.0,0.0003]
[1758029835011,0.2938671,115480.0,115470.0,0.0003]
[1758029835217,0.2938671,115480.0,115470.0,0.0002]
[1758029836938,0.2908171,115480.0,115470.0,0.0002]
[1758029837176,0.2938671,115480.0,115470.0,0.0002]
[1758029837577,0.2908171,115480.0,115470.0,0.0002]
[1758029837837,0.2658771,115480.0,115470.0,0.0002]
[1758029838048,0.22669516,115480.0,115470.0,0.5023898]
[1758029838256,0.22669516,115480.0,115470.0,0.0002]
[1758029838457,0.22669516,115480.0,115470.0,0.17340516]
[1758029839064,0.22669516,115480.0,115470.0,0.00102]
[1758029839633,0.22669516,115480.0,115470.0,0.0002]
[1758029839869,0.0233531,115480.0,115470.0,0.78023692]
[1758029840073,0.0011,115480.0,115470.0,0.76291641]
[1758029840284,0.0011,115480.0,115470.0,0.26072661]
[1758029840523,0.0011,115480.0,115470.0,0.76291641]
[1758029841778,0.0001,115480.0,115470.0,0.25990661]
[1758029841986,0.17329016,115480.0,115470.0,0.25990661]
[1758029842187,0.21347619,115480.0,115470.0,0.26490661]
[1758029842398,0.04028603,115480.0,115470.0,0.26572661]
[1758029842624,0.0031,115480.0,115470.0,0.76801641]
[1758029842803,0.0021,115480.0,115470.0,0.76501641]
[1758029843027,0.17329016,115480.0,115470.0,0.76219641]
[1758029843238,0.17329016,115480.0,115470.0,0.26200661]
[1758029843423,0.17429016,115480.0,115470.0,0.26200661]
[1758029843691,0.17529016,115480.0,115470.0,0.26500661]
[1758029843874,0.21004681,115480.0,115470.0,0.26582661]
[1758029844302,0.24019871,115480.0,115470.0,0.26500661]
[1758029844508,0.24220871,115480.0,115470.0,0.26500661]
[1758029844726,0.24019871,115480.0,115470.0,0.26500661]
[1758029845206,0.24019871,115480.0,115470.0,0.26582661]
[1758029845422,0.76969873,115480.0,115470.0,0.0053]
[1758029845636,0.79463873,115480.0,115470.0,0.0053]
[1758029846287,1.22114018,115480.0,115470.0,0.0053]
[1758029846930,1.22114018,115480.0,115470.0,0.0052]
[1758029848328,1.22014018,115480.0,115470.0,0.0032]
[1758029848743,1.22314018,115480.0,115470.0,0.0032]
[1758029849102,1.22214018,115480.0,115470.0,0.0002]
[1758029849343,1.22213619,115480.0,115470.0,0.0002]
[1758029849761,1.22313619,115480.0,115470.0,0.0002]
[1758029852590,1.23173153,115480.0,115470.0,1e-08]
[1758029853057,1.28173153,115480.0,115470.0,1e-08]
[1758029855821,1.27566728,115480.0,115470.0,1e-08]
[1758029856247,1.2594853,115480.0,115470.0,1e-08]
[1758029856413,1.30773764,115480.0,115470.0,1e-08]
[1758029856625,1.3077391,115480.0,115470.0,1e-08]
[1758029857036,0.20337206,115460.0,115450.0,0.474432]
[1758029857254,0.54338706,115450.0,115440.0,1e-08]
[1758029857465,1.1836023,115450.0,115440.0,1e-08]
[1758029857932,1.1837023,115450.0,115440.0,1e-08]
[1758029858142,1.18717492,115450.0,115440.0,1e-08]
[1758029858349,1.27367637,115450.0,115440.0,1e-08]
[1758029859270,1.27020375,115450.0,115440.0,1e-08]
[1758029859503,1.27320375,115450.0,115440.0,1e-08]
[1758029859750,1.27520375,115450.0,115440.0,0.00100001]
[1758029860584,1.25104375,115450.0,115440.0,0.00100001]
[1758029861000,0.74370395,115450.0,115440.0,0.00100001]
[1758029861408,0.6572025,115450.0,115440.0,0.00100001]
[1758029861639,0.3172025,115450.0,115440.0,0.00182001]
[1758029862446,0.23070105,115450.0,115440.0,0.00182001]
[1758029862915,0.57281105,115450.0,115440.0,0.00100001]
[1758029863080,1.1887023,115450.0,115440.0,0.00100001]
[1758029864392,0.6865125,115450.0,115440.0,0.00100001]
[1758029864638,1.1887023,115450.0,115440.0,0.00100001]
[1758029864874,1.27520375,115450.0,115440.0,0.00100001]
[1758029865328,0.77301395,115450.0,115440.0,0.00100001]
[1758029865558,1.27520375,115450.0,115440.0,0.00100001]
[1758029866277,0.77301395,115450.0,115440.0,0.00100001]
[1758029866518,0.51328019,115420.0,115410.0,0.00066323]
[1758029866768,0.61998929,115420.0,115410.0,0.00113494]
[1758029866994,0.64414929,115420.0,115410.0,0.00113494]
[1758029867227,0.73580074,115420.0,115410.0,0.00113494]
[1758029867682,1.23799054,115420.0,115410.0,0.00113494]
[1758029868168,0.73680074,115420.0,115410.0,0.00213494]
[1758029868444,0.73690074,115420.0,115410.0,0.00213494]
[1758029868674,0.73690074,115420.0,115410.0,0.00113494]